{"text_format":"3","workbook":"xlsx","n_sheets":6,"sheets":["Salgssamtalelogg","Kontaktinformasjon for kunde","Før du ringer","Første gang du ringer","Salgsinformasjon","Oppfølging"],"not_rendered":{"defined_names":14},"read":"whole","date_system":"1900"}

{"sheet":"Salgssamtalelogg","index":0,"n_rows":13,"n_cols":7,"rows_kept":13}
[null," Firmanavn"]
[null,"Salgssamtalelogg"]
[null,"Oppringing nr.","Kunde","Firma","Dato","Klokkeslett","Notater"]
[null,1,"Jeff Smith",{"$f":"IF(Salgssamtalelogg[[#This Row],[Kunde]]=\"\",\"\",IFERROR(VLOOKUP(Salgssamtalelogg[[#This Row],[Kunde]],Kontaktinformasjonforkunde[],2,0),\"Not Found\"))","v":"Proseware, Inc."},{"$f":"TODAY()-5","v":"2016-10-15"},"08:30:00"]
[null,2,"Radim Petratur",{"$f":"IF(Salgssamtalelogg[[#This Row],[Kunde]]=\"\",\"\",IFERROR(VLOOKUP(Salgssamtalelogg[[#This Row],[Kunde]],Kontaktinformasjonforkunde[],2,0),\"Not Found\"))","v":"Litware, Inc."},{"$f":"TODAY()-5","v":"2016-10-15"},"09:00:00"]
[null,3,"Phyllis Harris",{"$f":"IF(Salgssamtalelogg[[#This Row],[Kunde]]=\"\",\"\",IFERROR(VLOOKUP(Salgssamtalelogg[[#This Row],[Kunde]],Kontaktinformasjonforkunde[],2,0),\"Not Found\"))","v":"Northwind Traders"},"2016-10-15","09:30:00"]
[null,4,"Aaron Nicholls",{"$f":"IF(Salgssamtalelogg[[#This Row],[Kunde]]=\"\",\"\",IFERROR(VLOOKUP(Salgssamtalelogg[[#This Row],[Kunde]],Kontaktinformasjonforkunde[],2,0),\"Not Found\"))","v":"Lucerne Publishing"},"2016-10-15","10:00:00"]
[null,5,"Brian Welcker",{"$f":"IF(Salgssamtalelogg[[#This Row],[Kunde]]=\"\",\"\",IFERROR(VLOOKUP(Salgssamtalelogg[[#This Row],[Kunde]],Kontaktinformasjonforkunde[],2,0),\"Not Found\"))","v":"Margie's Travel"},"2016-10-15","10:30:00"]
[null,6,"Jeff Smith",{"$f":"IF(Salgssamtalelogg[[#This Row],[Kunde]]=\"\",\"\",IFERROR(VLOOKUP(Salgssamtalelogg[[#This Row],[Kunde]],Kontaktinformasjonforkunde[],2,0),\"Not Found\"))","v":"Proseware, Inc."},{"$f":"TODAY()-3","v":"2016-10-17"},"11:00:00"]
[null,7,"Radim Petratur",{"$f":"IF(Salgssamtalelogg[[#This Row],[Kunde]]=\"\",\"\",IFERROR(VLOOKUP(Salgssamtalelogg[[#This Row],[Kunde]],Kontaktinformasjonforkunde[],2,0),\"Not Found\"))","v":"Litware, Inc."},{"$f":"TODAY()-3","v":"2016-10-17"},"11:30:00"]
[null,8,"Jeff Smith",{"$f":"IF(Salgssamtalelogg[[#This Row],[Kunde]]=\"\",\"\",IFERROR(VLOOKUP(Salgssamtalelogg[[#This Row],[Kunde]],Kontaktinformasjonforkunde[],2,0),\"Not Found\"))","v":"Proseware, Inc."},{"$f":"TODAY()-1","v":"2016-10-19"},"12:00:00"]
[null,9,"Brian Welcker",{"$f":"IF(Salgssamtalelogg[[#This Row],[Kunde]]=\"\",\"\",IFERROR(VLOOKUP(Salgssamtalelogg[[#This Row],[Kunde]],Kontaktinformasjonforkunde[],2,0),\"Not Found\"))","v":"Margie's Travel"},{"$f":"TODAY()-1","v":"2016-10-19"},"12:30:00"]
[null,10,"Brian Welcker",{"$f":"IF(Salgssamtalelogg[[#This Row],[Kunde]]=\"\",\"\",IFERROR(VLOOKUP(Salgssamtalelogg[[#This Row],[Kunde]],Kontaktinformasjonforkunde[],2,0),\"Not Found\"))","v":"Margie's Travel"},{"$f":"TODAY()","v":"2016-10-20"},"13:00:00"]

{"sheet":"Kontaktinformasjon for kunde","index":1,"n_rows":8,"n_cols":8,"rows_kept":8}
[null,{"$f":"Firmanavn","v":" Firmanavn"}]
[null,"Kontaktinformasjon for kunde"]
[null,"Kundens navn","Firmanavn","Adresse","By, stat ZIP","Primærtelefon","Sekundærtelefon","E-post"]
[null,"Radim Petratur","Litware, Inc.","100 Main St","Cherrytown, NH 123456","(541) 555-0135","(541) 555-0136","radim@litwareinc.com"]
[null,"Aaron Nicholls","Lucerne Publishing","567 Second Ave","Spaulding, NY 23456","(425) 555-0198","(425) 555-0199","aaron@lucernepublishing.com"]
[null,"Brian Welcker","Margie's Travel","987 Orange St","Mountain View, IL 34567","(888) 555-0125","(888) 555-0126","brian@margiestravel.com"]
[null,"Phyllis Harris","Northwind Traders","890 N 3rd Ave","Chatham, CA 45678","(541) 555-0175","(541) 555-0176","phyllis@northwindtraders.com"]
[null,"Jeff Smith","Proseware, Inc.","123 Major Dr","Shelbyville, MA 56789","(509) 555-0150","(509) 555-0151","jeff@proseware.com"]

{"sheet":"Før du ringer","index":2,"n_rows":13,"n_cols":3,"rows_kept":13}
[null,{"$f":"Firmanavn","v":" Firmanavn"}]
[null,"Sjekkliste for salgssamtale"]
[null,"Avmerkingsboks","Før du ringer"]
[null,null,"Se gjennom samtaleloggen"]
[null,null,"Se gjennom loggen for kundens ansettelseshistorikk"]
[null,null,"Se gjennom prioriteringer og salgsstrategi"]
[null,null,"Legg til element"]
[null,null,"Legg til element"]
[null,null,"Legg til element"]
[null,null,"Legg til element"]
[null,null,"Legg til element"]
[null,null,"Legg til element"]
[null,null,"Legg til element"]

{"sheet":"Første gang du ringer","index":3,"n_rows":13,"n_cols":3,"rows_kept":13}
[null,{"$f":"Firmanavn","v":" Firmanavn"}]
[null,"Sjekkliste for salgssamtale"]
[null,"Avmerkingsboks","Første gang du ringer"]
[null,null,"Direkte anrop til relevant person"]
[null,null,"Tydelig introduksjon"]
[null,null,"Legg til element"]
[null,null,"Legg til element"]
[null,null,"Legg til element"]
[null,null,"Legg til element"]
[null,null,"Legg til element"]
[null,null,"Legg til element"]
[null,null,"Legg til element"]
[null,null,"Legg til element"]

{"sheet":"Salgsinformasjon","index":4,"n_rows":13,"n_cols":3,"rows_kept":13}
[null,{"$f":"Firmanavn","v":" Firmanavn"}]
[null,"Firmanavn"]
[null,"Avmerkingsboks","Salgsinformasjon"]
[null,null,"Tydelig og overbevisende introduksjon til produkt/tjeneste"]
[null,null,"Dekk alt det grunnleggende"]
[null,null,"Nevn tilstedeværelse på Internett (f.eks. nettstedet, sosiale nettverk)"]
[null,null,"Legg til element"]
[null,null,"Legg til element"]
[null,null,"Legg til element"]
[null,null,"Legg til element"]
[null,null,"Legg til element"]
[null,null,"Legg til element"]
[null,null,"Legg til element"]

{"sheet":"Oppfølging","index":5,"n_rows":13,"n_cols":3,"rows_kept":13}
[null,{"$f":"Firmanavn","v":" Firmanavn"}]
[null,"Sjekkliste for salgssamtale"]
[null,"Avmerkingsboks","Oppfølingsinformasjon"]
[null,null,"Kontaktinformasjon for kunde"]
[null,null,"Personlig informasjon for kunde"]
[null,null,"Kundens preferanser"]
[null,null,"Avtale ny kontakt?"]
[null,null,"Salg utført?"]
[null,null,"Legg til element"]
[null,null,"Legg til element"]
[null,null,"Legg til element"]
[null,null,"Legg til element"]
[null,null,"Legg til element"]